fUST/lending_fUST_20240610
["ID","MTS","AMOUNT","RATE_DAILY","PERIOD"]
[328954711,1718027471930,-546.88,0.00023013,2]
[328954712,1718027471940,-1110.76,0.00023013,2]
[328954713,1718027471951,-2940.84,0.00023013,2]
[328954714,1718027471962,-4098.29,0.00023013,2]
[328954715,1718027471972,-2176.93,0.00023013,2]
[328954716,1718027471982,-2014.2,0.00023013,2]
[328954717,1718027471992,-653.4,0.00023013,2]
[328954718,1718027472003,-847.123073,0.00023134,2]
[328954719,1718027472013,-974.075594,0.00023134,2]
[328954720,1718027472023,-620.05775594,0.00023244,2]
[328954721,1718027472032,-499.0,0.00023263,2]
[328954722,1718027472042,-230.527,0.00023263,2]
[328954723,1718027472051,-500.0,0.00023287,2]
[328954724,1718027472061,-852.44,0.00023287,2]
[328954725,1718027472071,-816.0,0.00023287,2]
[328954726,1718027472086,-697.87,0.00023287,2]
[328954727,1718027472096,-500.0,0.00023287,2]
[328954728,1718027472106,-749.15,0.00023287,2]
[328954729,1718027472116,-172.17325314,0.00023287,2]
[328954730,1718027472127,-574.83,0.00023287,2]
[328954731,1718027472137,-760.86,0.00023287,2]
[328954732,1718027472147,-500.0,0.00023287,2]
[328954733,1718027472159,-775.87,0.00023287,2]
[328954734,1718027472169,-793.41,0.00023287,2]
[328954735,1718027472179,-1146.57,0.00023287,2]
[328954736,1718027472190,-500.0,0.00023287,2]
[328954737,1718027472200,-500.0,0.00023287,2]
[328954738,1718027472210,-645.4,0.00023287,2]
[328954739,1718027472221,-638.56,0.00023287,2]
[328954740,1718027472231,-4240.31,0.00023287,2]
[328954741,1718027472241,-2476.18,0.00023287,2]
[328954742,1718027472252,-500.0,0.00023287,2]
[328954743,1718027472262,-1036.24,0.00023287,2]
[328954744,1718027472272,-1207.66,0.00023287,2]
[328954745,1718027472282,-500.0,0.00023287,2]
[328954746,1718027472292,-500.0,0.00023287,2]
[328954747,1718027472303,-607.44,0.00023287,2]
[328954748,1718027472313,-656.09,0.00023287,2]
[328954749,1718027472324,-1288.07,0.00023287,2]
[328954750,1718027472336,-803.58,0.00023287,2]
[328954751,1718027472347,-809.62,0.00023287,2]
[328954752,1718027472357,-1839.43,0.00023287,2]
[328954753,1718027472367,-663.34,0.00023287,2]
[328954754,1718027472377,-1812.95,0.00023287,2]
[328954755,1718027472387,-546.88,0.00023287,2]
[328954756,1718027472396,-1110.76,0.00023287,2]
[328954757,1718027472406,-2940.84,0.00023287,2]
[328954758,1718027472416,-4098.29,0.00023287,2]
[328954759,1718027472426,-2176.93,0.00023287,2]
[328954760,1718027472436,-2014.2,0.00023287,2]
[328954761,1718027472447,-653.4,0.00023287,2]
[328954762,1718027472457,-847.123073,0.0002342,2]
[328954763,1718027472471,-974.075594,0.0002342,2]
[328954764,1718027472481,-200.0,0.00023429,7]
[328954765,1718027472491,-166.666666,0.00023456,2]
[328954766,1718027472501,-500.0,0.00023561,2]
[328954767,1718027472512,-852.44,0.00023561,2]
[328954768,1718027472522,-816.0,0.00023561,2]
[328954769,1718027472532,-697.87,0.00023561,2]
[328954770,1718027472543,-500.0,0.00023561,2]
[328954771,1718027472553,-749.15,0.00023561,2]
[328954772,1718027472563,-574.83,0.00023561,2]
[328954773,1718027472573,-760.86,0.00023561,2]
[328954774,1718027472585,-500.0,0.00023561,2]
[328954775,1718027472594,-775.87,0.00023561,2]
[328954776,1718027472605,-793.41,0.00023561,2]
[328954777,1718027472616,-1146.57,0.00023561,2]
[328954778,1718027472627,-500.0,0.00023561,2]
[328954779,1718027472637,-500.0,0.00023561,2]
[328954780,1718027472730,-645.4,0.00023561,2]
[328954781,1718027472749,-638.56,0.00023561,2]
[328954782,1718027472759,-4240.31,0.00023561,2]
[328954783,1718027472769,-2476.18,0.00023561,2]
[328954784,1718027472779,-500.0,0.00023561,2]
[328954785,1718027472790,-1036.24,0.00023561,2]
[328954786,1718027472800,-1207.66,0.00023561,2]
[328954787,1718027472811,-500.0,0.00023561,2]
[328954788,1718027472821,-500.0,0.00023561,2]
[328954789,1718027472831,-607.44,0.00023561,2]
[328954790,1718027472842,-656.09,0.00023561,2]
[328954791,1718027472852,-1288.07,0.00023561,2]
[328954792,1718027472862,-803.58,0.00023561,2]
[328954793,1718027472873,-809.62,0.00023561,2]
[328954794,1718027472883,-1839.43,0.00023561,2]
[328954795,1718027472893,-663.34,0.00023561,2]
[328954796,1718027472903,-1812.95,0.00023561,2]
[328954797,1718027472913,-546.88,0.00023561,2]
[328954798,1718027472923,-1110.76,0.00023561,2]
[328954799,1718027472933,-2940.84,0.00023561,2]
[328954800,1718027472944,-4098.29,0.00023561,2]
[328954801,1718027472953,-2176.93,0.00023561,2]
[328954802,1718027472963,-2014.2,0.00023561,2]
[328954803,1718027472973,-653.4,0.00023561,2]
[328954804,1718027472983,-847.123073,0.00023705,2]
[328954805,1718027472993,-974.075594,0.00023705,2]
[328954806,1718027473003,-166.666666,0.00023808,2]
[328954807,1718027473013,-42612.23062011,0.0002383,2]
[328954808,1718027473126,-3732.58,0.00023013,2]
[328954809,1718027473136,-5918.43286132,0.0002383,2]
[328954810,1718027474301,522.38922677,9.999e-05,2]
[328954820,1718027623801,630.90366732,9.999e-05,2]
[328955016,1718028310404,630.90366732,9.999e-05,2]
[328955021,1718028461930,1881.2570651,0.00016926,2]
[328955039,1718028582614,1518.16131932,9.999e-05,2]
[328955040,1718028584061,1000.0,0.000289,120]
[328955117,1718028633745,-324.87774632,0.00017421,3]
[328955150,1718028639686,-261.78196367,0.00017421,3]
[328955151,1718028639700,-235.49923282,0.00017521,2]
[328955152,1718028639710,-309.9380155,0.00017521,2]
[328955153,1718028639721,-1518.16131932,0.00017521,2]
[328955154,1718028639732,-300.0,0.00017522,2]
[328955155,1718028639743,-300.0,0.00017522,2]
[328955156,1718028639754,-24900.0,0.00017523,2]
[328955157,1718028639764,-839.5858634,0.00017597,2]
[328955158,1718028639775,-170.793335,0.00017668,2]
[328955160,1718028639786,-2245.5025794,0.000189,2]
[328955162,1718028639796,-417.62065455,0.00019074,2]
[328955164,1718028639806,-417.62065453,0.00019075,2]
[328955166,1718028639816,-417.62065453,0.00019076,2]
[328955168,1718028639826,-417.62065453,0.00019077,2]
[328955170,1718028639836,-417.62065453,0.00019078,2]
[328955172,1718028639846,-420.0,0.00019128,2]
[328955174,1718028639856,-204.69,0.00019165,3]
[328955176,1718028639866,-170.57,0.00019165,3]
[328955177,1718028639876,-511.75,0.00019165,3]
[328955180,1718028639887,-39602.11130507,0.00019173,2]
[328955182,1718028639897,-23925.19602526,0.00019174,2]
[328955184,1718028639912,-6061.36488938,0.00019175,2]
[328955186,1718028639923,-3336.80692105,0.00019175,2]
[328955188,1718028639933,-295.48943354,0.00019176,2]
[328955190,1718028639945,-1649.3457922,0.00019176,2]
[328955192,1718028639956,-11305.54504539,0.00019176,2]
[328955194,1718028639966,-1068.40047541,0.00019176,2]
[328955196,1718028639976,-9587.15546833,0.00019176,2]
[328955198,1718028639986,-1964.27970474,0.00019177,2]
[328955200,1718028639996,-6307.68426359,0.00019178,15]
[328955202,1718028640006,-500.0,0.00019178,2]
[328955204,1718028640016,-550.3310889,0.00019178,2]
[328955206,1718028640026,-500.0,0.00019178,2]
[328955208,1718028640037,-500.0,0.00019178,2]
[328955210,1718028640048,-168.32487017,0.00019178,2]
[328955212,1718028640059,-500.0,0.00019178,2]
[328955214,1718028640069,-500.0,0.00019178,2]
[328955216,1718028640079,-166.93979045,0.00019178,2]
[328955218,1718028640090,-500.0,0.00019178,2]
[328955220,1718028640101,-450.17887943,0.00019178,2]
[328955222,1718028640111,-500.0,0.00019178,2]
[328955224,1718028640121,-500.0,0.00019178,2]
[328955226,1718028640131,-500.0,0.00019178,2]
[328955228,1718028640141,-500.0,0.00019178,2]
[328955230,1718028640151,-500.0,0.00019178,2]
[328955232,1718028640161,-167.2547336,0.00019178,2]
[328955234,1718028640171,-550.15616153,0.00019178,2]
[328955236,1718028640182,-238.14132516,0.00019178,2]
[328955238,1718028640195,-500.0,0.00019178,2]
[328955240,1718028640206,-500.0,0.00019178,2]
[328955242,1718028640216,-500.0,0.00019178,2]
[328955244,1718028640227,-199.05913898,0.00019178,2]
[328955246,1718028640237,-296.07805665,0.00019178,2]
[328955248,1718028640248,-500.0,0.00019178,2]
[328955250,1718028640259,-500.0,0.00019178,2]
[328955252,1718028640269,-500.0,0.00019178,2]
[328955254,1718028640280,-500.0,0.00019178,2]
[328955256,1718028640290,-500.0,0.00019178,2]
[328955258,1718028640300,-500.0,0.00019178,2]
[328955260,1718028640311,-500.0,0.00019178,2]
[328955261,1718028640321,-500.0,0.00019178,2]
[328955262,1718028640331,-500.0,0.00019178,2]
[328955263,1718028640341,-500.0,0.00019178,2]
[328955264,1718028640352,-500.0,0.00019178,2]
[328955265,1718028640362,-260.73219007,0.00019178,2]
[328955266,1718028640373,-500.0,0.00019178,2]
[328955267,1718028640384,-500.0,0.00019178,2]
[328955268,1718028640395,-500.0,0.00019178,2]
[328955269,1718028640405,-500.0,0.00019178,2]
[328955270,1718028640414,-250.0,0.00019178,2]
[328955271,1718028640424,-500.0,0.00019178,2]
[328955272,1718028640436,-500.0,0.00019178,2]
[328955273,1718028640448,-500.0,0.00019178,2]
[328955274,1718028640463,-500.0,0.00019178,2]
[328955276,1718028640473,-500.0,0.00019178,2]
[328955278,1718028640484,-500.0,0.00019178,2]
[328955280,1718028640496,-515.46654284,0.00019178,2]
[328955282,1718028640506,-500.0,0.00019178,2]
[328955284,1718028640516,-500.0,0.00019178,2]
[328955286,1718028640526,-500.0,0.00019178,2]
[328955288,1718028640536,-500.0,0.00019178,2]
[328955290,1718028640548,-500.0,0.00019178,2]
[328955292,1718028640559,-391.79730431,0.00019178,2]
[328955294,1718028640569,-500.0,0.00019178,2]
[328955296,1718028640580,-500.0,0.00019178,2]
[328955298,1718028640590,-500.0,0.00019178,2]
[328955299,1718028640600,-411.6235829,0.00019178,2]
[328955302,1718028640610,-500.0,0.00019178,2]
[328955303,1718028640620,-500.0,0.00019178,2]
[328955306,1718028640630,-443.91781131,0.00019178,2]
[328955307,1718028640640,-500.0,0.00019178,2]
[328955309,1718028640650,-500.0,0.00019178,2]
[328955311,1718028640660,-500.0,0.00019178,2]
[328955313,1718028640670,-515.9485462,0.00019178,2]
[328955316,1718028640681,-500.0,0.00019178,2]
[328955317,1718028640693,-500.0,0.00019178,2]
[328955319,1718028640703,-500.0,0.00019178,2]
[328955321,1718028640713,-500.0,0.00019178,2]
[328955323,1718028640725,-500.0,0.00019178,2]
[328955326,1718028640736,-500.0,0.00019178,2]
[328955327,1718028640746,-500.0,0.00019178,2]
[328955330,1718028640758,-506.52299297,0.00019178,2]
[328955331,1718028640768,-500.0,0.00019178,2]
[328955334,1718028640779,-500.0,0.00019178,2]
[328955336,1718028640789,-500.0,0.00019178,2]
[328955337,1718028640801,-500.0,0.00019178,2]
[328955339,1718028640811,-500.0,0.00019178,2]
[328955341,1718028640822,-500.68674375,0.00019178,2]
[328955343,1718028640832,-500.0,0.00019178,2]
[328955346,1718028640842,-500.0,0.00019178,2]
[328955347,1718028640853,-500.0,0.00019178,2]
[328955350,1718028640864,-500.0,0.00019178,2]
[328955351,1718028640874,-500.0,0.00019178,2]
[328955353,1718028640886,-501.76106981,0.00019178,2]
[328955355,1718028640898,-500.0,0.00019178,4]
[328955358,1718028640909,-500.6618498,0.00019178,2]
[328955359,1718028640920,-500.0,0.00019178,2]
[328955361,1718028640930,-500.0,0.00019178,2]
[328955363,1718028640942,-500.0,0.00019178,2]
[328955366,1718028640952,-500.0,0.00019178,2]
[328955368,1718028640962,-500.0,0.00019178,2]
[328955369,1718028640972,-500.0,0.00019178,2]
[328955371,1718028640982,-500.0,0.00019178,2]
[328955374,1718028640992,-500.0,0.00019178,2]
[328955376,1718028641004,-500.0,0.00019178,2]
[328955378,1718028641014,-500.0,0.00019178,2]
[328955380,1718028641024,-500.0,0.00019178,2]
[328955382,1718028641034,-500.75836926,0.00019178,2]
[328955384,1718028641044,-500.0,0.00019178,2]
[328955386,1718028641054,-460.09871168,0.00019178,2]
[328955388,1718028641065,-500.0,0.00019178,2]
[328955390,1718028641075,-500.0,0.00019178,2]
[328955392,1718028641085,-543.30073802,0.00019178,2]
[328955394,1718028641095,-500.0,0.00019178,2]
[328955396,1718028641106,-500.0,0.00019178,2]
[328955398,1718028641116,-500.0,0.00019178,2]
[328955400,1718028641126,-500.0,0.00019178,2]
[328955402,1718028641136,-500.0,0.00019178,2]
[328955404,1718028641147,-646.7420772,0.00019178,2]
[328955406,1718028641157,-500.0,0.00019178,2]
[328955408,1718028641167,-500.0,0.00019178,2]
[328955410,1718028641177,-500.0,0.00019178,2]
[328955412,1718028641187,-500.0,0.00019178,2]
[328955414,1718028641200,-500.0,0.00019178,2]
[328955416,1718028641210,-500.0,0.00019178,2]
[328955418,1718028641219,-500.0,0.00019178,2]
[328955420,1718028641230,-500.0,0.00019178,2]
[328955422,1718028641240,-500.0,0.00019178,2]
[328955424,1718028641250,-500.0,0.00019178,2]
[328955426,1718028641260,-500.0,0.00019178,2]
[328955428,1718028641271,-500.0,0.00019178,2]
[328955430,1718028641281,-501.0544169,0.00019178,2]
[328955432,1718028641291,-500.0,0.00019178,2]
[328955434,1718028641301,-500.0,0.00019178,2]
[328955436,1718028641311,-500.0,0.00019178,2]
[328955438,1718028641321,-523.20442661,0.00019178,2]
[328955439,1718028641331,-521.56,0.00019178,2]
[328955440,1718028641341,-500.0,0.00019178,2]
[328955441,1718028641351,-500.0,0.00019178,2]
[328955442,1718028641361,-500.0,0.00019178,2]
[328955443,1718028641371,-500.0,0.00019178,2]
[328955444,1718028641381,-500.0,0.00019178,2]
[328955445,1718028641392,-500.0,0.00019178,2]
[328955446,1718028641402,-500.0,0.00019178,2]
[328955447,1718028641412,-500.0,0.00019178,2]
[328955448,1718028641422,-500.0,0.00019178,2]
[328955449,1718028641432,-260.89556566,0.00019178,2]
[328955450,1718028641442,-500.0,0.00019178,2]
[328955451,1718028641452,-680.34,0.00019178,2]
[328955452,1718028641469,-500.0,0.00019178,2]
[328955453,1718028641479,-500.0,0.00019178,2]
[328955454,1718028641489,-500.0,0.00019178,2]
[328955455,1718028641499,-500.0,0.00019178,2]
[328955456,1718028641509,-169.34158618,0.00019178,2]
[328955457,1718028641527,-330.65841382,0.00019178,2]
[328955458,1718028641537,-500.0,0.00019178,2]
[328955459,1718028641550,-500.0,0.00019178,2]
[328955460,1718028641560,-500.0,0.00019178,2]
[328955461,1718028641570,-502.7999317,0.00019178,2]
[328955462,1718028641580,-663.85,0.00019178,2]
[328955463,1718028641590,-500.0,0.00019178,2]
[328955464,1718028641600,-500.0,0.00019178,2]
[328955465,1718028641610,-500.0,0.00019178,2]
[328955466,1718028641620,-500.0,0.00019178,2]
[328955467,1718028641630,-500.0,0.00019178,2]
[328955468,1718028641640,-500.0,0.00019178,2]
[328955469,1718028641780,-500.0,0.00019178,2]
[328955470,1718028641792,-500.0,0.00019178,2]
[328955471,1718028641803,-500.0,0.00019178,2]
[328955472,1718028641813,-500.0,0.00019178,2]
[328955473,1718028641823,-500.0,0.00019178,2]
[328955474,1718028641833,-500.0,0.00019178,2]
[328955475,1718028641843,-261.7167289,0.00019178,2]
[328955476,1718028641856,-238.2832711,0.00019178,2]
[328955477,1718028641866,-52.32294094,0.00019178,2]
[328955478,1718028641907,-447.67705906,0.00019178,2]
[328955479,1718028641918,-500.0,0.00019178,2]
[328955480,1718028641928,-500.0,0.00019178,2]
[328955481,1718028641938,-500.0,0.00019178,2]
[328955482,1718028641961,-500.0,0.00019178,2]
[328955483,1718028641976,-500.0,0.00019178,2]
[328955484,1718028641987,-500.0,0.00019178,2]
[328955485,1718028641998,-500.0,0.00019178,2]
[328955486,1718028642008,-500.0,0.00019178,2]
[328955487,1718028642019,-500.0,0.00019178,2]
[328955488,1718028642030,-330.77252692,0.00019178,2]
[328955489,1718028642040,-500.0,0.00019178,2]
[328955490,1718028642051,-500.0,0.00019178,2]
[328955491,1718028642062,-500.0,0.00019178,2]
[328955492,1718028642073,-500.0,0.00019178,2]
[328955493,1718028642083,-500.0,0.00019178,2]
[328955494,1718028642094,-311.06343418,0.00019178,2]
[328955495,1718028642105,-500.0,0.00019178,2]
[328955496,1718028642117,-570.74,0.00019178,2]
[328955497,1718028642128,-500.0,0.00019178,2]
[328955498,1718028642139,-500.0,0.00019178,2]
[328955499,1718028642150,-500.0,0.00019178,2]
[328955500,1718028642160,-500.0,0.00019178,2]
[328955501,1718028642171,-500.0,0.00019178,2]
[328955502,1718028642182,-500.0,0.00019178,2]
[328955503,1718028642197,-500.0,0.00019178,2]
[328955504,1718028642208,-500.0,0.00019178,2]
[328955505,1718028642218,-500.0,0.00019178,2]
[328955506,1718028642228,-500.0,0.00019178,2]
[328955507,1718028642238,-500.0,0.00019178,2]
[328955508,1718028642250,-500.0,0.00019178,2]
[328955509,1718028642260,-500.0,0.00019178,2]
[328955510,1718028642271,-500.0,0.00019178,2]
[328955511,1718028642282,-542.62,0.00019178,2]
[328955512,1718028642293,-500.0,0.00019178,2]
[328955513,1718028642303,-500.0,0.00019178,2]
[328955514,1718028642314,-500.0,0.00019178,2]
[328955515,1718028642324,-500.0,0.00019178,2]
[328955516,1718028642335,-500.0,0.00019178,2]
[328955517,1718028642345,-500.0,0.00019178,2]
[328955518,1718028642356,-500.0,0.00019178,2]
[328955519,1718028642366,-500.0,0.00019178,2]
[328955520,1718028642377,-500.0,0.00019178,2]
[328955521,1718028642388,-500.0,0.00019178,2]
[328955522,1718028642398,-329.86913548,0.00019178,2]
[328955523,1718028642409,-509.86600279,0.00019178,2]
[328955524,1718028642419,-500.0,0.00019178,2]
[328955526,1718028642430,-500.0,0.00019178,2]
[328955527,1718028642442,-500.0,0.00019178,2]
[328955529,1718028642455,-500.0,0.00019178,2]
[328955530,1718028642470,-511.03483259,0.00019178,2]
[328955531,1718028642480,-500.0,0.00019178,2]
[328955532,1718028642490,-500.0,0.00019178,2]
[328955533,1718028642500,-500.0,0.00019178,2]
[328955534,1718028642512,-500.0,0.00019178,2]
[328955535,1718028642523,-500.0,0.00019178,2]
[328955536,1718028642533,-504.50458181,0.00019178,2]
[328955537,1718028642545,-500.0,0.00019178,2]
[328955538,1718028642556,-516.2,0.00019178,2]
[328955539,1718028642567,-500.0,0.00019178,2]
[328955540,1718028642577,-500.0,0.00019178,2]
[328955541,1718028642588,-500.0,0.00019178,2]
[328955542,1718028642598,-500.0,0.00019178,2]
[328955543,1718028642609,-500.0,0.00019178,2]
[328955544,1718028642620,-500.0,0.00019178,2]
[328955545,1718028642631,-500.0,0.00019178,2]
[328955546,1718028642642,-500.0,0.00019178,2]
[328955547,1718028642653,-534.67296137,0.00019178,2]
[328955548,1718028642664,-500.0,0.00019178,2]
[328955549,1718028642676,-500.0,0.00019178,2]
[328955550,1718028642687,-500.0,0.00019178,2]
[328955551,1718028642701,-500.0,0.00019178,2]
[328955552,1718028642712,-1041.23,0.00019178,2]
[328955553,1718028642723,-500.0,0.00019178,2]
[328955554,1718028642733,-500.0,0.00019178,2]
[328955555,1718028642744,-500.0,0.00019178,2]
[328955556,1718028642755,-954.66,0.00019178,2]
[328955557,1718028642765,-500.0,0.00019178,2]
[328955558,1718028642776,-500.0,0.00019178,2]
[328955559,1718028642787,-533.46,0.00019178,2]
[328955560,1718028642797,-445.80126249,0.00019178,2]
[328955561,1718028642807,-500.0,0.00019178,2]
[328955562,1718028642817,-500.0,0.00019178,2]
[328955563,1718028642827,-500.0,0.00019178,2]
[328955564,1718028642837,-500.0,0.00019178,2]
[328955565,1718028642848,-534.62502791,0.00019178,2]
[328955566,1718028642858,-500.0,0.00019178,2]
[328955567,1718028642868,-500.0,0.00019178,2]
[328955568,1718028642878,-500.0,0.00019178,2]
[328955569,1718028642889,-500.0,0.00019178,2]
[328955570,1718028642901,-500.0,0.00019178,2]
[328955571,1718028642911,-1369.61,0.00019178,2]
[328955572,1718028642922,-500.0,0.00019178,2]
[328955573,1718028642932,-500.0,0.00019178,2]
[328955574,1718028642944,-500.0,0.00019178,2]
[328955575,1718028642954,-500.0,0.00019178,2]
[328955576,1718028642964,-500.0,0.00019178,2]
[328955577,1718028642975,-500.0,0.00019178,2]
[328955578,1718028642985,-328.39712378,0.00019178,2]
[328955579,1718028642996,-458.55223386,0.00019178,2]
[328955580,1718028643006,-500.0,0.00019178,2]
[328955581,1718028643017,-500.0,0.00019178,2]
[328955582,1718028643028,-500.0,0.00019178,2]
[328955583,1718028643037,-500.0,0.00019178,2]
[328955584,1718028643047,-500.0,0.00019178,2]
[328955585,1718028643058,-500.0,0.00019178,2]
[328955586,1718028643068,-500.0,0.00019178,2]
[328955587,1718028643079,-500.0,0.00019178,2]
[328955588,1718028643089,-1887.7,0.00019178,2]
[328955589,1718028643099,-500.0,0.00019178,2]
[328955590,1718028643109,-713.56,0.00019178,2]
[328955591,1718028643120,-500.0,0.00019178,2]
[328955592,1718028643130,-500.0,0.00019178,2]
[328955593,1718028643140,-500.0,0.00019178,2]
[328955594,1718028643151,-500.0,0.00019178,2]
[328955595,1718028643161,-500.0,0.00019178,2]
[328955596,1718028643172,-500.0,0.00019178,2]
[328955597,1718028643182,-500.0,0.00019178,2]
[328955598,1718028643193,-500.0,0.00019178,2]
[328955599,1718028643203,-500.0,0.00019178,2]
[328955600,1718028643212,-500.0,0.00019178,2]
[328955601,1718028643222,-500.0,0.00019178,2]
[328955602,1718028643233,-500.0,0.00019178,2]
[328955603,1718028643243,-500.0,0.00019178,2]
[328955604,1718028643253,-500.0,0.00019178,2]
[328955605,1718028643264,-500.0,0.00019178,2]
[328955606,1718028643275,-500.0,0.00019178,2]
[328955607,1718028643285,-500.0,0.00019178,2]
[328955608,1718028643295,-500.0,0.00019178,2]
[328955609,1718028643305,-500.0,0.00019178,2]
[328955610,1718028643315,-510.33057948,0.00019178,2]
[328955611,1718028643325,-500.0,0.00019178,2]
[328955612,1718028643335,-500.0,0.00019178,2]
[328955613,1718028643345,-500.0,0.00019178,2]
[328955615,1718028643363,-500.0,0.00019178,2]
[328955617,1718028643378,-500.0,0.00019178,2]
[328955620,1718028643394,-500.0,0.00019178,2]
[328955622,1718028643409,-500.0,0.00019178,2]
[328955624,1718028643424,-500.0,0.00019178,2]
[328955626,1718028643437,-332.93429418,0.00019178,2]
[328955628,1718028643453,-500.0,0.00019178,2]
[328955631,1718028643469,-500.0,0.00019178,2]
[328955633,1718028643484,-500.0,0.00019178,2]
[328955634,1718028643499,-500.0,0.00019178,2]
[328955635,1718028643514,-500.0,0.00019178,2]
[328955636,1718028643528,-500.0,0.00019178,2]
[328955637,1718028643543,-731.99,0.00019178,2]
[328955638,1718028643556,-500.0,0.00019178,2]
[328955639,1718028643569,-500.0,0.00019178,2]
[328955640,1718028643584,-527.37667733,0.00019178,2]
[328955641,1718028643598,-500.0,0.00019178,2]
[328955642,1718028643612,-500.0,0.00019178,2]
[328955643,1718028643624,-500.0,0.00019178,2]
[328955644,1718028643638,-500.0,0.00019178,2]
[328955645,1718028643649,-500.0,0.00019178,2]
[328955646,1718028643661,-302.59456899,0.00019178,2]
[328955647,1718028643674,-500.0,0.00019178,2]
[328955648,1718028643686,-500.0,0.00019178,2]
[328955649,1718028643702,-500.0,0.00019178,2]
[328955650,1718028643715,-500.0,0.00019178,2]
[328955651,1718028643728,-205.41533945,0.00019178,2]
[328955652,1718028643740,-500.0,0.00019178,2]
[328955653,1718028643754,-500.0,0.00019178,2]
[328955654,1718028643765,-500.0,0.00019178,2]
[328955658,1718028643776,-500.0,0.00019178,2]
[328955662,1718028643788,-1023.95,0.00019178,2]
[328955665,1718028643801,-500.0,0.00019178,2]
[328955668,1718028643813,-500.0,0.00019178,2]
[328955671,1718028643825,-500.0,0.00019178,2]
[328955674,1718028643838,-432.190909,0.00019178,2]
[328955676,1718028643851,-1652.15,0.00019178,2]
[328955677,1718028643867,-500.0,0.00019178,2]
[328955678,1718028643880,-500.0,0.00019178,2]
[328955679,1718028643892,-223.84,0.00019178,2]
[328955682,1718028643907,-1260.31,0.00019178,2]
[328955684,1718028643921,-500.0,0.00019178,2]
[328955686,1718028643934,-500.0,0.00019178,2]
[328955688,1718028643948,-500.0,0.00019178,2]
[328955690,1718028643960,-500.0,0.00019178,2]
[328955692,1718028643971,-501.50362085,0.00019178,2]
[328955693,1718028643982,-960.44,0.00019178,2]
[328955694,1718028643992,-514.35312752,0.00019178,2]
[328955695,1718028644003,-500.0,0.00019178,2]
[328955696,1718028644014,-500.0,0.00019178,2]
[328955697,1718028644026,-500.0,0.00019178,2]
[328955698,1718028644038,-500.0,0.00019178,2]
[328955699,1718028644050,-500.0,0.00019178,2]
[328955700,1718028644063,-500.0,0.00019178,2]
[328955701,1718028644075,-500.0,0.00019178,2]
[328955702,1718028644086,-165.36070291,0.00019178,2]
[328955703,1718028644096,-500.0,0.00019178,2]
[328955704,1718028644108,-500.0,0.00019178,2]
[328955705,1718028644119,-500.0,0.00019178,2]
[328955706,1718028644131,-500.0,0.00019178,2]
[328955707,1718028644144,-200.49242232,0.00019178,2]
[328955708,1718028644156,-500.0,0.00019178,2]
[328955709,1718028644169,-503.23950912,0.00019178,2]
[328955710,1718028644181,-500.0,0.00019178,2]
[328955711,1718028644195,-500.0,0.00019178,2]